bitfinex-derivatives/quotes_BTCF0:USTF0_20241019
["timestamp","ask_amount","ask_price","bid_price","bid_amount"]
[1729371452589,0.0307,68282.0,68281.0,0.28483495]
[1729371454399,0.0307,68282.0,68281.0,0.34329481]
[1729371454599,0.0307,68282.0,68281.0,0.28483495]
[1729371456897,0.0307,68282.0,68281.0,0.34329481]
[1729371461909,0.12263489,68282.0,68281.0,0.28483495]
[1729371466313,0.07324183,68282.0,68281.0,0.28483495]
[1729371467412,0.12261867,68282.0,68281.0,0.28483495]
[1729371470016,0.0307,68282.0,68281.0,0.28483495]
[1729371476924,0.08005953,68282.0,68281.0,0.28483495]
[1729371477226,0.12257248,68282.0,68281.0,0.28483495]
[1729371480131,0.12264926,68282.0,68281.0,0.28483495]
[1729371483529,0.12265762,68282.0,68281.0,0.28483495]
[1729371485040,0.0307,68282.0,68281.0,0.28483495]
[1729371492033,0.12282351,68282.0,68281.0,0.28483495]
[1729371492547,0.09212351,68282.0,68281.0,0.64563495]
[1729371493437,0.04280143,68286.0,68285.0,0.065896]
[1729371493642,0.04968226,68286.0,68285.0,0.0002]
[1729371493840,0.09465581,68287.0,68286.0,0.28667215]
[1729371494035,0.09465581,68287.0,68286.0,0.28687215]
[1729371494343,0.09465581,68287.0,68286.0,0.2863671]
[1729371498947,0.15118403,68287.0,68286.0,0.2863671]
[1729371499945,0.00219734,68287.0,68286.0,0.31283305]
[1729371502444,0.065894,68288.0,68287.0,0.065895]
[1729371502643,0.065894,68288.0,68287.0,0.066095]
[1729371502945,0.065894,68288.0,68287.0,0.28675113]
[1729371509452,0.06589,68292.0,68291.0,0.06589]
[1729371509839,0.06589,68292.0,68291.0,0.06609]
[1729371515448,0.11576289,68292.0,68291.0,0.06609]
[1729371515644,0.21550867,68292.0,68291.0,0.06609]
[1729371521953,0.06589,68292.0,68291.0,0.06609]
[1729371530250,0.11570524,68292.0,68291.0,0.06609]
[1729371530450,0.21533572,68292.0,68291.0,0.06609]
[1729371537166,0.06589,68292.0,68291.0,0.10999722]
[1729371540664,0.06589,68292.0,68291.0,0.06609]
[1729371540860,0.06589,68292.0,68291.0,0.10998369]
[1729371545071,0.06589,68292.0,68291.0,0.06609]
[1729371552061,0.21561655,68292.0,68291.0,0.06609]
[1729371554368,0.21554257,68292.0,68291.0,0.06609]
[1729371560378,0.06589,68292.0,68291.0,0.10998369]
[1729371567275,0.21552099,68292.0,68291.0,0.06609]
[1729371571186,0.21552491,68292.0,68291.0,0.06609]
[1729371572181,0.10884977,68292.0,68291.0,0.06609]
[1729371573591,0.06589,68292.0,68291.0,0.06609]
[1729371573786,0.10889493,68292.0,68291.0,0.06609]
[1729371575183,0.06589,68292.0,68291.0,0.06609]
[1729371579189,0.06589,68292.0,68291.0,0.12463309]
[1729371580183,0.06589,68292.0,68291.0,0.05874309]
[1729371580480,0.06589,68292.0,68291.0,0.0002]
[1729371580685,0.06589,68292.0,68291.0,0.04411324]
[1729371580888,0.06589,68292.0,68291.0,0.0002]
[1729371582582,0.11556016,68292.0,68291.0,0.0002]
[1729371582784,0.06589,68292.0,68291.0,0.0002]
[1729371583088,0.21490044,68292.0,68291.0,0.0002]
[1729371586292,0.065894,68288.0,68287.0,0.0002]
[1729371586484,0.48318797,68288.0,68287.0,0.0002]
[1729371586789,1.17563863,68288.0,68287.0,0.0002]
[1729371587292,1.0171224,68288.0,68287.0,0.0002]
[1729371587791,0.57563863,68288.0,68287.0,0.0002]
[1729371588183,0.57509548,68288.0,68287.0,0.0002]
[1729371590276,0.426694,68288.0,68287.0,0.0002]
[1729371590682,0.45279293,68288.0,68287.0,0.0002]
[1729371604988,0.45279293,68288.0,68287.0,0.04411324]
[1729371605388,0.49537511,68288.0,68287.0,0.0002]
[1729371608491,0.065905,68277.0,68276.0,0.065905]
[1729371608700,0.1083787,68277.0,68276.0,0.065905]
[1729371610092,0.065905,68277.0,68276.0,0.065905]
[1729371612392,0.065905,68277.0,68276.0,0.22948787]
[1729371613707,0.09261054,68277.0,68276.0,0.22948787]
[1729371615010,0.09261054,68277.0,68276.0,0.13899843]
[1729371615307,0.065906,68275.0,68274.0,0.07309343]
[1729371615500,0.065906,68275.0,68274.0,0.1636072]
[1729371615701,0.065906,68275.0,68274.0,0.07309343]
[1729371615897,0.065906,68275.0,68274.0,0.1636218]
[1729371616401,0.065906,68275.0,68274.0,0.1636888]
[1729371619103,0.0916671,68275.0,68274.0,0.1636888]
[1729371619303,0.065906,68275.0,68274.0,0.1636888]
[1729371619500,0.15749354,68275.0,68273.0,0.459748]
[1729371619804,0.15749454,68274.0,68273.0,0.458908]
[1729371620406,0.15749403,68274.0,68273.0,0.458908]
[1729371621200,0.15749403,68274.0,68273.0,0.3608]
[1729371621413,0.10828786,68274.0,68273.0,0.3608]
[1729371621806,0.1573658,68274.0,68273.0,0.3608]
[1729371623105,0.21307913,68274.0,68273.0,0.3608]
[1729371623416,0.1573658,68274.0,68273.0,0.3608]
[1729371625313,0.1843246,68274.0,68273.0,0.3608]
[1729371626311,0.065912,68269.0,68268.0,0.065913]
[1729371626512,0.11498994,68269.0,68268.0,0.065913]
[1729371626719,0.1573708,68269.0,68268.0,0.065913]
[1729371627521,0.065912,68269.0,68268.0,0.065913]
[1729371629914,0.11944,68273.0,68267.0,0.04388895]
[1729371630111,0.11944,68273.0,68272.0,0.0002]
[1729371630421,0.185348,68273.0,68272.0,0.0002]
[1729371642520,0.27567541,68273.0,68272.0,0.0002]
[1729371644428,0.27564867,68273.0,68272.0,0.0002]
[1729371647330,0.18760867,68273.0,68272.0,0.0002]
[1729371647634,0.24424867,68273.0,68272.0,0.0002]
[1729371648325,0.15620867,68273.0,68272.0,0.0002]
[1729371648527,0.24424867,68273.0,68272.0,0.066109]
[1729371648728,0.15620867,68273.0,68272.0,0.066109]
[1729371649630,0.065908,68273.0,68272.0,0.066109]
[1729371651333,0.361,68275.0,68272.0,0.0002]
[1729371651633,0.361,68275.0,68274.0,0.426907]
[1729371651634,0.0002,68275.0,68274.0,0.426907]
[1729371651838,0.0002,68275.0,68274.0,0.51738858]
[1729371652023,0.0002,68277.0,68276.0,0.065905]
[1729371652224,0.0002,68277.0,68276.0,0.15638658]
[1729371652424,0.0002,68277.0,68276.0,0.37754094]
[1729371652927,0.0002,68277.0,68276.0,0.45066814]
[1729371653329,0.0002,68277.0,68276.0,0.28705936]
[1729371653832,0.0002,68277.0,68276.0,0.45050502]
[1729371654028,0.0002,68277.0,68276.0,0.36018656]
[1729371654335,0.0002,68277.0,68276.0,0.28705936]
[1729371657633,0.04272428,68277.0,68276.0,0.28705936]
[1729371659335,0.04272428,68277.0,68276.0,0.88705936]
[1729371660238,0.04272428,68277.0,68276.0,0.92005936]
[1729371661337,0.04272428,68277.0,68276.0,0.32005936]
[1729371662247,0.04270685,68277.0,68276.0,0.32005936]
[1729371664537,0.0002,68277.0,68276.0,0.32005936]
[1729371664733,0.066101,68281.0,68280.0,0.065901]
[1729371664932,0.066101,68281.0,68280.0,0.426901]
[1729371665242,0.066101,68281.0,68280.0,0.64754486]
[1729371665937,0.0002,68284.0,68283.0,0.065898]
[1729371666131,0.0002,68284.0,68283.0,0.066098]
[1729371666327,0.0002,68284.0,68283.0,1.32537924]
[1729371669139,0.0002,68284.0,68283.0,0.88601924]
[1729371671245,0.0002,68284.0,68283.0,1.32537924]
[1729371672735,0.09289206,68284.0,68283.0,1.32537924]
[1729371676633,0.1496164,68284.0,68283.0,1.32537924]
[1729371677944,0.09289206,68284.0,68283.0,1.32537924]
[1729371678238,0.09289206,68284.0,68283.0,0.88601924]
[1729371679548,0.0002,68284.0,68283.0,0.88601924]
[1729371685255,0.0002,68284.0,68283.0,0.28601924]
[1729371693180,0.0002,68284.0,68283.0,0.3298435]
[1729371694692,0.1502405,68284.0,68283.0,0.28601924]
[1729371700186,0.0002,68284.0,68283.0,0.28601924]
[1729371700389,0.15044729,68284.0,68283.0,0.28601924]
[1729371702689,0.15044729,68284.0,68283.0,0.37596871]
[1729371702690,0.0002,68284.0,68283.0,0.37596871]
[1729371704996,0.0002,68284.0,68283.0,0.73676871]
[1729371708798,0.0002,68284.0,68283.0,0.37596871]
[1729371709096,0.0002,68284.0,68283.0,0.73676871]
[1729371709687,0.0002,68284.0,68283.0,0.28601924]
[1729371710089,0.0002,68284.0,68283.0,0.64681924]
[1729371710497,0.05705931,68284.0,68283.0,0.28601924]
[1729371710694,0.10699248,68284.0,68283.0,0.64681924]
[1729371710893,0.1499995,68284.0,68283.0,0.28601924]
[1729371711400,0.1499995,68284.0,68283.0,0.64681924]
[1729371711799,0.1499995,68284.0,68283.0,0.28601924]
[1729371712796,0.1499995,68284.0,68283.0,0.64681924]
[1729371713190,0.1499995,68284.0,68283.0,0.28601924]
[1729371713898,0.1499995,68284.0,68283.0,0.64681924]
[1729371714395,0.09313651,68284.0,68283.0,0.64681924]
[1729371714598,0.14999358,68284.0,68283.0,0.64681924]
[1729371715001,0.14999358,68284.0,68283.0,0.28601924]
[1729371715694,0.14999358,68284.0,68283.0,0.64681924]
[1729371716300,0.14999358,68284.0,68283.0,0.28601924]
[1729371716503,0.14999358,68284.0,68283.0,0.64681924]
[1729371717502,0.15007514,68284.0,68283.0,0.64681924]
[1729371717697,0.0002,68284.0,68283.0,0.73678811]
[1729371719502,0.0002,68284.0,68283.0,0.73682346]
[1729371720893,0.0002,68284.0,68283.0,0.80998624]
[1729371721990,0.0002,68284.0,68283.0,0.71998202]
[1729371722298,0.0002,68284.0,68283.0,0.81003881]
[1729371722606,0.0002,68284.0,68283.0,0.71998202]
[1729371723404,0.0002,68284.0,68283.0,0.64681924]
[1729371723704,0.0002,68284.0,68283.0,0.71998202]
[1729371724609,0.0002,68284.0,68283.0,0.64681924]
[1729371730412,0.0308,68287.0,68283.0,0.58092124]
[1729371730611,0.0308,68287.0,68286.0,0.065896]
[1729371731003,0.0308,68287.0,68286.0,0.28709232]
[1729371731704,1.01283053,68311.0,68286.0,0.22119632]
[1729371731705,0.388792,68311.0,68286.0,0.22119632]
[1729371731909,0.065888,68294.0,68293.0,0.065888]
[1729371732610,0.21612599,68294.0,68293.0,0.065888]
[1729371735102,0.27004795,68294.0,68293.0,0.065888]
[1729371735308,0.37715303,68294.0,68293.0,0.065888]
[1729371735904,0.21612599,68294.0,68293.0,0.065888]
[1729371736115,0.21612599,68294.0,68293.0,0.09283478]
[1729371737118,0.21610088,68294.0,68293.0,0.065888]
[1729371739816,0.1090137,68294.0,68293.0,0.065888]
[1729371741919,0.10901071,68294.0,68293.0,0.065888]
[1729371746610,0.10894799,68294.0,68293.0,0.065888]
[1729371747719,0.065888,68294.0,68293.0,0.065888]
[1729371747922,0.21589098,68294.0,68293.0,0.065888]
[1729371752022,0.37699924,68294.0,68293.0,0.065888]
[1729371754127,0.21589098,68294.0,68293.0,0.065888]
[1729371754827,0.10894799,68294.0,68293.0,0.065888]
[1729371762031,0.065888,68294.0,68293.0,0.065888]
[1729371763134,0.21752179,68294.0,68293.0,0.065888]
[1729371764230,0.21755352,68294.0,68293.0,0.065888]
[1729371766023,0.16693559,68294.0,68293.0,0.065888]
[1729371766234,0.21745939,68294.0,68293.0,0.065888]
[1729371769730,0.065888,68294.0,68293.0,0.065888]
[1729371772031,0.10937956,68294.0,68293.0,0.065888]
[1729371780539,0.10934335,68294.0,68293.0,0.065888]
[1729371784135,0.10932034,68294.0,68293.0,0.065888]
[1729371784945,0.16678638,68294.0,68293.0,0.065888]
[1729371785151,0.21725237,68294.0,68293.0,0.065888]
[1729371788942,0.21699943,68294.0,68293.0,0.065888]
[1729371792054,0.21699943,68294.0,68293.0,0.02788223]
[1729371792856,0.10927167,68294.0,68293.0,0.02788223]
[1729371798767,0.065892,68291.0,68290.0,0.065892]
[1729371798954,0.10927567,68291.0,68290.0,0.065892]
[1729371799263,0.10927567,68291.0,68290.0,0.28626621]
[1729371800463,0.15923687,68291.0,68290.0,0.28626621]
[1729371800665,0.21612811,68291.0,68290.0,0.28626621]
[1729371807861,0.10927567,68291.0,68290.0,0.28626621]
[1729371811065,0.10894773,68291.0,68290.0,0.28626621]
[1729371811366,0.065892,68291.0,68290.0,0.28626621]
[1729371811869,0.10891739,68291.0,68290.0,0.28626621]
[1729371812078,0.065892,68291.0,68290.0,0.28626621]
[1729371812561,0.10894554,68291.0,68290.0,0.28626621]
[1729371813873,0.065892,68291.0,68290.0,0.28626621]
[1729371814660,0.10900238,68291.0,68290.0,0.28626621]
[1729371814867,0.065892,68291.0,68290.0,0.28626621]
[1729371822880,0.16566222,68291.0,68290.0,0.28626621]
[1729371823076,0.21555103,68291.0,68290.0,0.28626621]
[1729371829880,0.065892,68291.0,68290.0,0.28626621]
[1729371831000,0.10891836,68291.0,68290.0,0.28626621]
[1729371835682,0.065892,68291.0,68290.0,0.28626621]
[1729371837981,0.16590778,68291.0,68290.0,0.28626621]
[1729371838293,0.21591567,68291.0,68290.0,0.28626621]
[1729371841092,0.21590181,68291.0,68290.0,0.28626621]
[1729371845000,0.065892,68291.0,68290.0,0.28626621]
[1729371852101,0.10893306,68291.0,68290.0,0.28626621]
[1729371852604,0.21581006,68291.0,68290.0,0.28626621]
[1729371855307,0.21568613,68291.0,68290.0,0.28626621]
[1729371858403,0.27006342,68291.0,68290.0,0.28626621]
[1729371859308,0.37685207,68291.0,68290.0,0.28626621]
[1729371859500,0.21568613,68291.0,68290.0,0.28626621]
[1729371859699,0.27006426,68291.0,68290.0,0.28626621]
[1729371859910,0.16575475,68291.0,68290.0,0.28626621]
[1729371860115,0.065892,68291.0,68290.0,0.28626621]
[1729371865002,0.10891337,68291.0,68290.0,0.28626621]
[1729371867101,0.065892,68291.0,68290.0,0.28626621]
[1729371875115,0.21558769,68291.0,68290.0,0.28626621]
[1729371882115,0.065892,68291.0,68290.0,0.28626621]
[1729371890327,0.21559601,68291.0,68290.0,0.28626621]
[1729371893934,0.21559702,68291.0,68290.0,0.28626621]
[1729371897234,0.065892,68291.0,68290.0,0.28626621]
[1729371904040,0.065892,68291.0,68290.0,0.22037421]
[1729371904233,0.065892,68290.0,68289.0,0.05852271]
[1729371905329,0.065894,68288.0,68287.0,0.065894]
[1729371905642,0.15996338,68288.0,68287.0,0.065894]
[1729371905839,0.15996338,68288.0,68287.0,0.28604564]
[1729371906840,0.15996009,68288.0,68287.0,0.28604564]
[1729371912247,0.065894,68288.0,68287.0,0.28604564]
[1729371912447,0.065894,68288.0,68287.0,0.34456411]
[1729371913038,0.065894,68288.0,68287.0,0.22015164]
[1729371913239,0.065894,68288.0,68277.0,0.3948]
[1729371913240,0.06589,68292.0,68285.0,0.05851853]
[1729371913443,0.065897,68284.0,68283.0,0.05851853]
[1729371913645,0.0327,68287.0,68282.0,0.05851853]
[1729371913840,0.098498,68283.0,68282.0,0.05851853]
[1729371914242,0.065899,68282.0,68281.0,0.05851853]
[1729371915145,0.065899,68282.0,68281.0,0.0659]
[1729371920156,0.065899,68282.0,68281.0,0.10974411]
[1729371920359,0.065899,68282.0,68281.0,0.0659]
[1729371923551,0.0326,68283.0,68277.0,0.3608]
[1729371923552,0.0326,68283.0,68282.0,0.065899]
[1729371923751,0.075761,68283.0,68282.0,0.066099]
[1729371924049,0.0326,68283.0,68282.0,0.066099]
[1729371928673,0.098498,68283.0,68282.0,0.066099]
[1729371932383,0.065895,68287.0,68286.0,0.065894]
[1729371932880,0.065895,68287.0,68286.0,0.066094]
[1729371933480,0.08824,68289.0,68288.0,0.065894]
[1729371933481,0.0002,68289.0,68288.0,0.065894]
[1729371933677,0.0002,68289.0,68288.0,0.066094]
[1729371933873,0.0002,68289.0,68288.0,0.28633919]
[1729371937283,0.0002,68289.0,68288.0,0.33016497]
[1729371937782,0.0002,68289.0,68288.0,0.28633919]
[1729371943983,0.09423258,68289.0,68288.0,0.28633919]
[1729371944287,0.1517602,68289.0,68288.0,0.28633919]
[1729371947190,0.09423258,68289.0,68288.0,0.28633919]
[1729371950482,0.0002,68289.0,68288.0,0.33016497]
[1729371952084,0.0002,68289.0,68288.0,0.28633919]
[1729371952581,0.066093,68289.0,68288.0,0.28633919]
[1729371958583,0.066093,68289.0,68288.0,0.33016641]
[1729371958791,0.066093,68289.0,68288.0,0.28633919]
[1729371961399,0.066093,68289.0,68288.0,0.33018658]
[1729371962193,0.066093,68289.0,68288.0,0.28633919]
[1729371963585,0.066093,68289.0,68288.0,0.34485772]
[1729371963902,0.066093,68289.0,68288.0,0.28633919]
[1729371965396,0.20371707,68289.0,68288.0,0.28633919]
[1729371965993,0.16015429,68289.0,68288.0,0.28633919]
[1729371966501,0.21765306,68289.0,68288.0,0.28633919]
[1729371971897,0.16015429,68289.0,68288.0,0.28633919]
[1729371972507,0.066093,68289.0,68288.0,0.28633919]
[1729371976005,0.0002,68289.0,68288.0,0.28633919]
[1729371976201,0.0002,68289.0,68288.0,0.34485772]
[1729371976604,0.0002,68289.0,68288.0,0.28633919]
[1729371978609,0.0002,68295.0,68288.0,0.37557171]
[1729371978807,0.0002,68295.0,68294.0,0.426688]
[1729371978999,0.0002,68295.0,68294.0,0.426888]
[1729371979202,0.0002,68295.0,68294.0,0.64656578]
[1729371979500,0.0002,68295.0,68294.0,0.705039]
[1729371980397,0.0002,68295.0,68294.0,0.64656578]
[1729371980905,0.04407661,68295.0,68294.0,0.64656578]
[1729371981707,0.04409243,68295.0,68294.0,0.64656578]
[1729371983508,0.0002,68295.0,68294.0,0.64656578]
[1729371983907,0.04409243,68295.0,68294.0,0.64656578]
[1729371987609,0.0002,68295.0,68294.0,0.64656578]
[1729371988725,0.0002,68297.0,68294.0,0.64656578]
[1729371988928,0.0002,68297.0,68296.0,0.426686]
[1729371989217,0.0002,68297.0,68296.0,0.426886]
[1729371989514,0.0002,68297.0,68296.0,0.64508634]
[1729371995512,0.05144643,68297.0,68296.0,0.64508634]
[1729371995719,0.09558455,68297.0,68296.0,0.64508634]
[1729371996225,0.09558424,68297.0,68296.0,0.64508634]
[1729371998423,0.0002,68297.0,68296.0,0.64508634]
[1729371998818,0.09558424,68297.0,68296.0,0.64508634]
[1729371999024,0.10263592,68297.0,68296.0,0.64508634]
[1729371999225,0.09558424,68297.0,68296.0,0.64508634]
[1729371999524,0.0002,68297.0,68296.0,0.64508634]
[1729371999721,0.10267232,68297.0,68296.0,0.64508634]
[1729371999927,0.15391858,68297.0,68296.0,0.64508634]
[1729372002635,0.0002,68297.0,68296.0,0.70345371]
[1729372002928,0.0002,68297.0,68296.0,0.64508634]
[1729372008419,0.0002,68297.0,68296.0,0.8069599]
[1729372008623,0.0002,68297.0,68296.0,0.80695051]
[1729372008818,0.0002,68297.0,68296.0,0.71817786]
[1729372009233,0.0002,68297.0,68296.0,0.80695657]
[1729372010129,0.0311,68302.0,68301.0,0.065881]
[1729372010525,0.12695142,68302.0,68301.0,0.2854265]
[1729372013136,0.12695142,68302.0,68301.0,0.31115727]
[1729372015338,0.12694171,68302.0,68301.0,0.31115727]
[1729372016042,0.12694171,68302.0,68301.0,0.67195727]
[1729372016641,0.07544967,68302.0,68301.0,0.67195727]
[1729372017532,0.0311,68302.0,68301.0,0.67195727]
[1729372022350,0.0311,68302.0,68301.0,0.76007727]
[1729372023244,0.0311,68302.0,68301.0,0.83312051]
[1729372025046,0.0311,68302.0,68301.0,0.76007727]
[1729372025433,0.0311,68302.0,68301.0,0.83312051]
[1729372025634,0.0311,68302.0,68301.0,0.76007727]
[1729372030849,0.0311,68302.0,68301.0,0.67195727]
[1729372032452,0.0311,68302.0,68301.0,0.73037465]
[1729372032748,0.0311,68302.0,68301.0,0.67195727]
[1729372033448,0.07560759,68302.0,68301.0,0.67195727]
[1729372033646,0.12727252,68302.0,68301.0,0.67195727]
[1729372034448,0.1859648,68302.0,68301.0,0.76007727]
[1729372034847,0.1859648,68302.0,68301.0,0.67195727]
[1729372035061,0.1859648,68302.0,68301.0,0.76007727]
[1729372038348,0.07560759,68302.0,68301.0,0.76007727]
[1729372040563,0.0311,68302.0,68301.0,0.76007727]
[1729372040766,0.0311,68302.0,68301.0,0.92184245]
[1729372041366,0.0311,68302.0,68301.0,0.83312051]
[1729372042574,0.0311,68302.0,68301.0,0.92182203]
[1729372043470,0.0311,68302.0,68301.0,0.9218282]
[1729372043966,0.0311,68302.0,68301.0,0.84878496]
[1729372044168,0.0311,68302.0,68301.0,0.92187824]
[1729372044365,0.0311,68302.0,68301.0,0.84878496]
[1729372044971,0.0311,68302.0,68301.0,0.48798496]
[1729372045261,0.0311,68302.0,68301.0,0.84878496]
[1729372047658,0.0311,68302.0,68301.0,0.76007727]
[1729372054368,0.0311,68302.0,68301.0,0.83318492]
[1729372055667,0.0311,68302.0,68301.0,0.76007727]
[1729372056073,0.18593734,68302.0,68301.0,0.76007727]
[1729372062877,0.18593734,68302.0,68301.0,0.84885314]
[1729372062878,0.0311,68302.0,68301.0,0.84885314]
[1729372064885,0.426658,68326.0,68301.0,0.84885314]
[1729372065186,0.0326,68310.0,68309.0,0.1243854]
[1729372065582,0.0326,68310.0,68309.0,0.34334664]
[1729372070188,0.0326,68310.0,68309.0,0.28483424]
[1729372070790,0.1287332,68310.0,68309.0,0.28483424]
[1729372072188,0.12870132,68310.0,68309.0,0.28483424]
[1729372072603,0.12870132,68310.0,68309.0,0.31148935]
[1729372073306,0.13586717,68310.0,68309.0,0.31148935]
[1729372073510,0.0326,68310.0,68309.0,0.31148935]
[1729372073705,0.09139737,68310.0,68309.0,0.31148935]
[1729372074005,0.18749869,68310.0,68309.0,0.31148935]
[1729372075399,0.09139737,68310.0,68309.0,0.31148935]
[1729372075599,0.13582638,68310.0,68309.0,0.31148935]
[1729372075808,0.18743957,68310.0,68309.0,0.31148935]
[1729372076900,0.1802764,68310.0,68309.0,0.31148935]
[1729372077115,0.18742568,68310.0,68309.0,0.31148935]
[1729372077805,0.0326,68310.0,68309.0,0.31148935]
[1729372085406,0.18741745,68310.0,68309.0,0.31148935]
[1729372088218,0.23821442,68310.0,68309.0,0.31148935]
[1729372088422,0.34858421,68310.0,68309.0,0.31148935]
[1729372089823,0.34794738,68310.0,68309.0,0.31148935]
[1729372092817,0.19376676,68310.0,68309.0,0.31148935]
[1729372093122,0.0326,68310.0,68309.0,0.31148935]
[1729372097821,0.00219605,68316.0,68310.0,0.065872]
[1729372098024,0.0444012,68315.0,68314.0,0.065868]
[1729372098327,0.00219605,68316.0,68315.0,0.28489092]
[1729372098525,0.00219605,68316.0,68315.0,0.28509092]
[1729372098728,0.00219605,68316.0,68315.0,0.066068]
[1729372098927,0.00219605,68316.0,68315.0,0.28565765]
[1729372099926,0.04680232,68316.0,68315.0,0.28565765]
[1729372100123,0.20796908,68316.0,68315.0,0.28565765]
[1729372100828,0.31873274,68316.0,68315.0,0.28565765]
[1729372101525,0.15756598,68316.0,68315.0,0.28565765]
[1729372102127,0.09639625,68316.0,68315.0,0.28565765]
[1729372102731,0.04460627,68316.0,68315.0,0.28565765]
[1729372102928,0.04460627,68325.0,68315.0,0.21978965]
[1729372103131,0.15614183,68324.0,68323.0,0.06586]
[1729372103334,0.05974558,68324.0,68323.0,0.42666]
[1729372103627,0.09775051,68324.0,68323.0,0.58141094]
[1729372103840,0.11231976,68324.0,68323.0,0.61261094]
[1729372104034,0.15757391,68330.0,68323.0,0.61261094]
[1729372104235,0.0680475,68331.0,68323.0,0.61261094]
[1729372104236,0.15755211,68329.0,68328.0,0.065855]
[1729372104534,0.22340611,68329.0,68328.0,0.065855]
[1729372104737,0.22340611,68329.0,68328.0,0.28438268]
[1729372107936,0.065854,68329.0,68328.0,0.28438268]
[1729372122947,0.22284329,68329.0,68328.0,0.28438268]
[1729372123245,0.2228649,68329.0,68328.0,0.28438268]
[1729372123441,0.2228649,68329.0,68328.0,0.16722307]
[1729372124529,0.2228649,68329.0,68328.0,0.23307807]
[1729372124735,0.38390708,68329.0,68328.0,0.23307807]
[1729372126337,0.2228649,68329.0,68328.0,0.23307807]
[1729372128149,0.21934918,68329.0,68328.0,0.23307807]
[1729372129649,0.3801532,68329.0,68328.0,0.23307807]
[1729372130042,0.065854,68329.0,68328.0,0.23307807]
[1729372132055,0.10999454,68329.0,68328.0,0.23307807]
[1729372132748,0.065854,68329.0,68328.0,0.23307807]
[1729372132955,0.10999455,68329.0,68328.0,0.23307807]
[1729372133157,0.065859,68324.0,68323.0,0.3608]
[1729372133451,0.06586,68323.0,68322.0,0.04385524]
[1729372133656,0.06586,68323.0,68320.0,0.04385524]
[1729372133657,0.065862,68321.0,68320.0,0.04385524]
[1729372133862,0.065862,68321.0,68319.0,0.10971924]
[1729372135046,0.065862,68321.0,68319.0,0.065864]
[1729372135250,0.065862,68321.0,68319.0,0.10971924]
[1729372135855,0.03,68323.0,68315.0,0.04405524]
[1729372136057,0.3608,68319.0,68315.0,0.0002]
[1729372136453,0.3608,68319.0,68316.0,0.065867]
[1729372137461,0.065866,68317.0,68316.0,0.065867]
[1729372138162,0.0002,68322.0,68315.0,0.0002]
[1729372138163,0.361,68322.0,68315.0,0.0002]
[1729372138355,0.065865,68318.0,68315.0,0.0002]
[1729372139057,0.065865,68318.0,68315.0,0.066067]
[1729372139362,0.065865,68318.0,68316.0,0.065867]
[1729372141360,0.065867,68316.0,68315.0,0.0002]
[1729372145562,0.11628177,68316.0,68315.0,0.0002]
[1729372145769,0.21709724,68316.0,68315.0,0.0002]
[1729372147272,0.21686999,68316.0,68315.0,0.0002]
[1729372150568,0.15961773,68316.0,68315.0,0.0002]
[1729372152971,0.065867,68316.0,68315.0,0.0002]
[1729372160165,0.21683593,68316.0,68315.0,0.0002]
[1729372162775,0.22667102,68316.0,68315.0,0.0002]
[1729372162970,0.37763995,68316.0,68315.0,0.0002]
[1729372163373,0.065871,68311.0,68303.0,0.0315]
[1729372163574,0.065878,68304.0,68303.0,0.0315]
[1729372163779,0.04334276,68304.0,68303.0,0.097378]
[1729372164078,0.15031215,68308.0,68306.0,0.065876]
[1729372164265,0.15031215,68307.0,68306.0,0.065876]
[1729372166078,0.065877,68306.0,68303.0,0.3923]
[1729372166386,0.15031215,68305.0,68303.0,0.3923]
[1729372166684,0.15031215,68304.0,68303.0,0.458179]
[1729372167480,0.15031215,68304.0,68303.0,0.097379]
[1729372167679,0.15031215,68304.0,68303.0,0.458179]
[1729372167980,0.065877,68306.0,68303.0,0.3923]
[1729372168180,0.065877,68306.0,68305.0,0.04404425]
[1729372168377,0.065877,68306.0,68305.0,0.10992125]
[1729372169079,0.05946988,68310.0,68306.0,0.065876]
[1729372169080,0.065875,68308.0,68306.0,0.065876]
[1729372169478,0.065875,68308.0,68307.0,0.0002]
[1729372174980,0.21600178,68308.0,68307.0,0.0002]
[1729372179185,0.2159188,68308.0,68307.0,0.0002]
[1729372183190,0.065875,68308.0,68307.0,0.0002]
[1729372186499,0.065875,68308.0,68307.0,0.04404425]
[1729372187601,0.065875,68308.0,68307.0,0.0002]
[1729372189502,0.065875,68308.0,68307.0,0.04404425]
[1729372190199,0.21565096,68308.0,68307.0,0.0002]
[1729372198103,0.065875,68308.0,68307.0,0.0002]
[1729372199409,0.065875,68308.0,68307.0,0.0440885]
[1729372199803,0.065875,68308.0,68307.0,0.0002]
[1729372200108,0.065875,68308.0,68307.0,0.04408747]
[1729372204706,0.065875,68308.0,68307.0,0.0002]
[1729372210011,0.10894648,68308.0,68307.0,0.0002]
[1729372213210,0.21592038,68308.0,68307.0,0.0002]
[1729372216516,0.21592507,68308.0,68307.0,0.0002]
[1729372220324,0.065875,68308.0,68307.0,0.0002]
[1729372220822,0.065875,68308.0,68307.0,0.066075]
[1729372221216,0.065875,68308.0,68307.0,0.10996892]
[1729372221526,0.065875,68308.0,68307.0,0.10996896]
[1729372223123,0.065875,68308.0,68307.0,0.10996951]
[1729372223320,0.065875,68308.0,68307.0,0.066075]
[1729372223713,0.065875,68308.0,68307.0,0.10996962]
[1729372223919,0.065875,68308.0,68307.0,0.066075]
[1729372228319,0.10896328,68308.0,68307.0,0.066075]
[1729372228519,0.04308828,68308.0,68307.0,0.066075]
[1729372232132,0.12534288,68310.0,68309.0,0.065873]
[1729372232333,0.12534288,68310.0,68309.0,0.066073]
[1729372236729,0.16840787,68310.0,68309.0,0.066073]
[1729372236929,0.21840834,68310.0,68309.0,0.066073]
[1729372238130,0.27535651,68310.0,68309.0,0.066073]
[1729372239038,0.27535485,68310.0,68309.0,0.066073]
[1729372248945,0.27549438,68310.0,68309.0,0.066073]
[1729372250735,0.12534288,68310.0,68309.0,0.066073]
[1729372252840,0.12534288,68310.0,68309.0,0.10996681]
[1729372253034,0.12534288,68310.0,68309.0,0.066073]
[1729372255244,0.12534288,68310.0,68309.0,0.10996681]
[1729372255448,0.12534288,68310.0,68309.0,0.066073]
[1729372256555,0.12534288,68310.0,68309.0,0.10996681]
[1729372257747,0.02626988,68310.0,68309.0,0.066073]
[1729372258053,0.0004,68311.0,68310.0,0.065872]
[1729372258351,0.0004,68311.0,68310.0,0.10995327]
[1729372258847,0.04360432,68311.0,68310.0,0.066072]